bitfinex-derivatives/quotes_ETHF0:USTF0_20250927
["timestamp","ask_amount","ask_price","bid_price","bid_amount"]
[1758988951275,9.78876,4017.7,4017.6,0.33435274]
[1758988951483,9.78876,4017.7,4017.6,0.55115274]
[1758988951781,9.78876,4017.7,4017.6,0.33435274]
[1758988952376,9.78876,4017.7,4017.5,0.1298]
[1758988952682,9.78876,4017.7,4017.3,0.2168]
[1758988952683,1.15909,4017.4,4017.3,0.2168]
[1758988952870,11.35009,4017.4,4017.3,0.2168]
[1758988953074,0.88973,4017.1,4017.0,0.3471]
[1758988953375,9.07853,4017.1,4017.0,0.34933057]
[1758988953679,9.07853,4017.1,4017.0,0.56093057]
[1758988954184,4.34853,4017.1,4017.0,0.56093057]
[1758988954475,4.34853,4017.1,4017.0,0.89303057]
[1758988955783,4.61793,4017.1,4017.0,0.89303057]
[1758988956083,13.20793,4017.1,4017.0,0.00223057]
[1758988960582,13.20793,4017.1,4017.0,0.68093057]
[1758988962190,13.20793,4017.1,4017.0,0.33433057]
[1758988966089,13.20793,4017.1,4017.0,0.00223057]
[1758988966990,13.20793,4017.1,4017.0,0.33433057]
[1758988971891,12.93853,4017.1,4017.0,0.89253057]
[1758988972292,13.20793,4017.1,4017.0,0.89253057]
[1758988974903,13.20793,4017.1,4017.0,0.00223057]
[1758988975198,14.99490131,4017.1,4017.0,0.00223057]
[1758988975696,14.74390131,4017.1,4017.0,0.00223057]
[1758988975894,13.20793,4017.1,4017.0,0.00223057]
[1758988980598,13.20793,4017.1,4017.0,0.31263057]
[1758988982798,13.20793,4017.1,4017.0,0.00223057]
[1758988983390,13.20793,4017.1,4017.0,0.31263057]
[1758988984603,13.20793,4017.1,4017.0,0.53563057]
[1758988985405,13.20793,4017.1,4017.0,0.31263057]
[1758988988808,13.20793,4017.1,4017.0,0.00223057]
[1758988989504,13.20793,4017.1,4017.0,0.31803057]
[1758988990817,13.20793,4017.1,4017.0,0.00223057]
[1758988991718,1.20803,4016.1,4016.0,0.5604]
[1758988991900,13.13683,4016.1,4016.0,0.425]
[1758988992104,13.13683,4016.1,4015.5,0.1298]
[1758988992105,0.44798,4015.7,4015.5,0.1298]
[1758988992307,0.66508,4015.7,4015.6,0.7408]
[1758988992519,4.12388,4015.7,4015.6,0.7408]
[1758988992813,4.12645861,4015.7,4015.6,0.74287619]
[1758988993210,4.22147861,4015.7,4015.6,0.74287619]
[1758988995914,4.22147861,4015.7,4015.6,0.53707619]
[1758988996616,12.61147861,4015.7,4015.6,0.31787619]
[1758988997210,12.61147861,4015.7,4015.6,0.00207619]
[1758988998214,1.11998,4015.6,4014.6,3.2078]
[1758988998414,3.65585,4015.1,4014.7,0.7408]
[1758988998613,0.2171,4014.9,4014.8,0.3158]
[1758988998817,0.2171,4014.9,4014.8,0.7408]
[1758988999116,0.251,4015.0,4014.8,5.7408]
[1758988999315,3.2078,4015.1,4015.0,0.8659]
[1758988999513,3.4588,4015.1,4015.0,0.8659]
[1758989000909,3.6759,4015.1,4015.0,0.8659]
[1758989003221,4.2082,4015.1,4015.0,0.8659]
[1758989004123,3.8989,4015.1,4015.0,0.8659]
[1758989004419,4.2082,4015.1,4015.0,0.8659]
[1758989005516,4.65624,4015.1,4015.0,0.535]
[1758989007216,4.65624,4015.1,4015.0,0.8818]
[1758989008211,3.6479,4015.1,4015.0,1.32986]
[1758989008412,4.34694,4015.1,4015.0,0.8818]
[1758989009028,3.2078,4015.1,4015.0,1.32986]
[1758989009324,3.4588,4015.1,4015.0,1.32986]
[1758989009727,3.6721,4015.1,4015.0,1.32986]
[1758989010327,3.4588,4015.1,4015.0,1.32986]
[1758989011416,3.8884,4015.1,4015.0,0.8818]
[1758989011621,3.4588,4015.1,4015.0,1.32986]
[1758989017415,3.2078,4015.1,4015.0,1.32986]
[1758989017622,3.2078,4015.6,4015.5,1.3335]
[1758989018020,3.4588,4015.6,4015.5,1.3335]
[1758989018426,0.251,4015.6,4015.5,1.3335]
[1758989019243,0.00257861,4015.7,4015.6,0.756]
[1758989019526,3.4588,4016.1,4016.0,0.8855]
[1758989019930,3.2078,4016.1,4016.0,1.33344]
[1758989020524,3.21071294,4016.1,4016.0,1.33344]
[1758989021730,0.00291294,4016.1,4016.0,1.33344]
[1758989021929,0.00291294,4016.1,4016.0,6.33344]
[1758989026027,0.74181294,4016.1,4016.0,0.8855]
[1758989026334,0.44797,4015.8,4015.6,0.44799]
[1758989026536,0.5226,4015.6,4015.5,3.2078]
[1758989026742,0.7389,4015.6,4015.5,3.2078]
[1758989026939,0.7389,4015.6,4015.5,3.5225]
[1758989027430,0.7389,4015.6,4015.5,0.3147]
[1758989027634,0.2133,4015.6,4015.5,0.5708]
[1758989028041,0.7389,4015.6,4015.5,0.8855]
[1758989033640,0.44797,4015.8,4015.6,0.319]
[1758989033850,1.20627,4015.8,4015.7,0.5346]
[1758989034141,0.7583,4015.8,4015.7,0.7538]
[1758989034338,0.4416,4015.8,4015.7,0.7538]
[1758989034839,0.88957,4015.8,4015.7,0.7538]
[1758989035639,0.224,4015.8,4015.7,0.7538]
[1758989035839,3.68571294,4016.1,4016.0,0.8826]
[1758989036244,3.43471294,4016.1,4016.0,0.8826]
[1758989036547,3.21071294,4016.1,4016.0,0.8826]
[1758989041646,3.2078,4016.6,4016.0,7.00245]
[1758989041847,3.2078,4016.6,4016.5,0.8826]
[1758989042049,3.2078,4016.6,4016.5,1.33049]
[1758989042647,0.69886,4016.8,4016.7,1.20166]
[1758989042648,0.92286,4016.8,4016.7,1.20166]
[1758989042945,0.92476323,4016.8,4016.7,1.20166]
[1758989043944,0.92476323,4016.8,4016.7,0.7538]
[1758989044147,1.45906323,4016.8,4016.7,0.7538]
[1758989044352,1.20806323,4016.8,4016.7,0.5346]
[1758989044654,1.20806323,4016.8,4016.7,0.319]
[1758989045449,0.44787,4016.7,4016.4,0.319]
[1758989045751,0.7583,4016.2,4016.1,3.2078]
[1758989045954,0.7583,4016.2,4016.1,3.5268]
[1758989046454,0.7583,4016.2,4016.1,3.7424]
[1758989048149,0.7583,4016.2,4016.1,3.5268]
[1758989048753,0.7583,4016.2,4016.1,3.2078]
[1758989048953,0.311,4016.1,4015.8,0.44796]
[1758989049257,0.7367,4015.9,4015.8,0.99966]
[1758989049655,1.18466,4015.9,4015.8,0.5517]
[1758989049954,1.18466,4015.9,4015.6,3.4588]
[1758989049955,0.44798,4015.7,4015.6,3.5427]
[1758989050254,1.18468,4015.7,4015.6,3.5427]
[1758989051152,1.18468,4015.7,4015.6,3.7595]
[1758989052158,1.43568,4015.7,4015.6,3.2078]
[1758989052761,1.43568,4015.7,4015.6,3.5427]
[1758989052961,0.6767,4015.7,4015.6,3.9726]
[1758989054558,0.4257,4015.7,4015.6,3.9726]
[1758989054756,0.4593,4015.7,4015.6,3.9726]
[1758989058158,0.90728,4015.7,4015.6,3.9726]
[1758989059659,0.4593,4015.7,4015.6,0.7648]
[1758989061463,1.43568,4015.7,4015.6,0.7648]
[1758989063564,0.9877,4015.7,4015.6,0.7648]
[1758989064766,1.43568,4015.7,4015.6,0.5517]
[1758989064967,1.43568,4015.7,4015.6,0.3349]
[1758989066365,1.43568,4015.7,4015.6,0.5498]
[1758989066761,0.75898,4015.7,4015.6,0.7586]
[1758989066962,0.4768,4015.8,4015.7,1.18898]
[1758989067359,0.6986,4015.8,4015.7,1.18898]
[1758989067559,1.0204,4015.8,4015.7,1.18898]
[1758989068666,1.46837,4015.8,4015.7,1.18898]
[1758989069366,1.14657,4015.8,4015.7,1.18898]
[1758989069560,1.46837,4015.8,4015.7,1.18898]
[1758989070366,1.14657,4015.8,4015.7,1.18898]
[1758989070568,0.6986,4015.8,4015.7,1.18898]
[1758989071667,0.4768,4015.8,4015.7,1.18898]
[1758989073169,1.20954,4016.5,4016.4,0.2088]
[1758989073170,3.2078,4016.5,4016.4,0.2088]
[1758989073375,4.35429,4016.5,4016.4,0.741]
[1758989073765,4.67609,4016.5,4016.4,0.741]
[1758989074474,3.9772,4016.5,4016.4,0.741]
[1758989074776,3.9064,4016.5,4016.4,1.1889]
[1758989075969,0.6986,4016.5,4016.4,1.1889]
[1758989076171,0.4476,4016.5,4016.4,1.1889]
[1758989076368,0.6986,4016.5,4016.4,1.1889]
[1758989077976,0.00190323,4016.8,4016.7,0.741]
[1758989079678,0.00190323,4016.8,4016.7,5.741]
[1758989080467,0.00190323,4016.8,4016.7,0.741]
[1758989082976,3.2078,4017.5,4017.4,1.18879]
[1758989083174,3.6846,4017.5,4017.4,1.18879]
[1758989083881,3.68644258,4017.5,4017.4,1.18879]
[1758989084175,3.90824258,4017.5,4017.4,0.741]
[1758989084385,4.23004258,4017.5,4017.4,0.3173]
[1758989088081,3.97904258,4017.5,4017.4,0.3173]
[1758989088283,4.23004258,4017.5,4017.4,0.3173]
[1758989089080,4.67782258,4017.5,4017.4,0.3173]
[1758989089282,4.23004258,4017.5,4017.4,0.3173]
[1758989089580,0.4476,4017.0,4016.9,0.5322]
[1758989089781,3.9772,4017.0,4016.9,0.5322]
[1758989089979,0.2258,4016.6,4016.5,0.344]
[1758989090188,0.7694,4016.6,4016.5,0.344]
[1758989090483,0.7694,4016.6,4016.5,0.2149]
[1758989090782,0.7694,4016.6,4016.5,0.5322]
[1758989091780,0.3218,4016.5,4016.1,3.2078]
[1758989091983,0.2258,4015.7,4015.6,3.6315]
[1758989092481,0.67375,4016.0,4015.9,0.4237]
[1758989092682,4.42515,4016.0,4015.9,0.3173]
[1758989093583,4.42515,4016.0,4015.9,0.5322]
[1758989093982,0.44799,4015.6,4015.5,0.1249]
[1758989094188,1.20139,4015.6,4015.5,0.344]
[1758989094682,1.20139,4015.6,4015.5,0.6815]
[1758989094881,1.20139,4015.6,4015.5,0.8897]
[1758989099280,1.20139,4015.6,4015.5,0.3375]
[1758989099482,0.67054,4015.1,4015.0,4.1017]
[1758989100090,1.20144,4015.1,4015.0,4.1017]
[1758989100687,1.20144,4015.1,4015.0,0.7648]
[1758989101079,1.20144,4015.1,4015.0,0.3375]
[1758989101286,1.20144,4015.1,4015.0,0.5566]
[1758989101688,1.20144,4015.1,4015.0,0.3375]
[1758989101891,1.20147,4014.9,4014.8,0.00246227]
[1758989102093,1.20147,4014.9,4014.8,0.55906227]
[1758989102390,1.20147,4014.9,4014.8,0.76726227]
[1758989102391,0.2225,4014.9,4014.8,0.76726227]
[1758989102690,0.67055,4015.1,4015.0,0.8971]
[1758989103089,0.251,4015.1,4015.0,0.5596]
[1758989103283,3.2078,4015.5,4015.0,0.5596]
[1758989103590,3.2078,4015.5,4015.4,0.7648]
[1758989104097,3.6398,4015.5,4015.4,0.7648]
[1758989104285,3.9612,4015.5,4015.4,0.7648]
[1758989107381,0.44801,4015.4,4014.8,0.33996227]
[1758989107588,0.7534,4014.9,4014.8,0.55906227]
[1758989107785,0.7534,4014.9,4014.8,0.33996227]
[1758989108690,0.7534,4014.9,4014.8,0.00246227]
[1758989108895,0.7534,4014.9,4014.8,0.54086227]
[1758989110094,0.432,4014.9,4014.8,0.76086227]
[1758989110286,1.21343,4015.2,4015.1,0.437]
[1758989110487,1.46443,4015.2,4015.1,0.437]
[1758989110898,1.46443,4015.2,4015.1,0.7584]
[1758989111798,1.46443,4015.2,4015.1,0.5384]
[1758989112601,0.7654,4014.9,4014.8,0.21946227]
[1758989112789,0.7654,4014.9,4014.8,0.00246227]
[1758989112991,1.0164,4014.9,4014.8,0.00246227]
[1758989114996,1.0164,4014.9,4014.8,0.32386227]
[1758989115199,1.0164,4014.9,4014.8,0.00246227]
[1758989116400,4.2242,4014.9,4014.8,0.00246227]
[1758989116696,18.5442,4014.9,4014.8,0.00246227]
[1758989119598,18.5442,4014.9,4013.6,0.4482]
[1758989119599,0.2203,4013.7,4013.6,0.3214]
[1758989119790,0.7654,4013.7,4013.6,0.3214]
[1758989119989,0.7654,4013.7,4013.6,0.5384]
[1758989120598,0.7654,4013.7,4013.6,0.54148603]
[1758989120599,0.76793133,4013.7,4013.6,0.54148603]
[1758989122695,0.42823133,4013.7,4013.6,0.76148603]
[1758989122900,0.00253133,4013.7,4013.6,0.76148603]
[1758989124594,0.20823133,4013.7,4013.6,0.76148603]
[1758989125099,0.00253133,4013.7,4013.6,0.76148603]
[1758989126202,0.00253133,4013.7,4013.6,1.20969603]
[1758989126596,0.45073133,4013.7,4013.6,1.20969603]
[1758989127902,0.65643133,4013.7,4013.6,0.76148603]
[1758989128801,0.20823133,4013.7,4013.6,1.20969603]
[1758989129001,0.00253133,4013.7,4013.6,1.20969603]
[1758989138707,3.2078,4014.2,4014.1,1.20556]
[1758989139607,3.21081047,4014.2,4014.1,1.20556]
[1758989140110,3.41651047,4014.2,4014.1,1.20556]
[1758989140306,3.64091047,4014.2,4014.1,1.20555]
[1758989140507,3.97641047,4014.2,4014.1,1.20555]
[1758989141696,3.64091047,4014.2,4014.1,1.20555]
[1758989142098,3.97641047,4014.2,4014.1,1.20555]
[1758989145504,3.64091047,4014.2,4014.1,1.20555]
[1758989145811,0.43311047,4014.2,4014.1,1.20555]
[1758989146913,0.00301047,4014.2,4014.1,1.20555]
[1758989155723,0.00301047,4014.2,4014.1,1.45655]
[1758989159424,0.00301047,4014.2,4014.1,3.24811609]
[1758989160820,3.2078,4015.3,4015.2,0.221]
[1758989161024,3.2078,4015.3,4015.2,1.21393]
[1758989161827,3.21012658,4015.3,4015.2,1.21393]
[1758989163233,0.00232658,4015.3,4015.2,1.21393]
[1758989166325,0.75382658,4015.3,4015.2,0.7659]
[1758989167633,0.44192658,4015.3,4015.2,0.7659]
[1758989167834,0.75382658,4015.3,4015.2,0.7659]
[1758989168540,0.44192658,4015.3,4015.2,0.7659]
[1758989169036,0.22462658,4015.3,4015.2,0.7659]
[1758989169227,0.00232658,4015.3,4015.2,0.7659]
[1758989171237,0.00232658,4015.3,4015.2,1.0169]
[1758989172033,3.2078,4015.8,4015.7,0.44798]
[1758989172241,1.21942,4016.2,4016.1,0.5273]
[1758989172536,1.71134041,4016.2,4016.1,0.5273]
[1758989173237,1.71438559,4016.2,4016.1,0.5273]
[1758989174131,1.26646559,4016.2,4016.1,0.5273]
[1758989174540,2.70277199,4016.2,4016.1,0.97523]
[1758989176243,1.26646559,4016.2,4016.1,0.97523]
[1758989176445,2.70277199,4016.2,4016.1,0.97523]
[1758989176630,0.92926559,4016.2,4016.1,1.19033]
[1758989176835,2.61657199,4016.2,4016.1,1.19033]
[1758989177941,2.36557199,4016.2,4016.1,1.19033]
[1758989178130,2.70277199,4016.2,4016.1,1.19033]
[1758989178741,2.21085158,4016.2,4016.1,1.19033]
[1758989179847,0.43734518,4016.2,4016.1,1.19033]
[1758989180032,0.00304518,4016.2,4016.1,1.19033]
[1758989183539,0.00304518,4016.2,4016.1,1.44133]
[1758989185642,0.00304518,4016.2,4016.1,2.8776364]
[1758989187748,0.00304518,4016.2,4016.1,7.8776364]
[1758989194546,0.74684518,4016.2,4016.1,0.7424]
[1758989194751,0.2266,4015.8,4015.7,0.44797]
[1758989194946,2.1801064,4015.8,4015.7,0.44797]
[1758989195140,2.67250085,4015.8,4015.7,0.44797]
[1758989195348,2.67250085,4015.8,4015.7,0.78197]
[1758989195647,2.67250085,4015.8,4015.7,0.334]
[1758989196348,2.67250085,4015.8,4015.7,0.5469]
[1758989197049,0.71899445,4015.8,4015.7,0.7631]
[1758989197251,3.96756518,4016.2,4015.7,0.7631]
[1758989197453,1.23644775,4016.1,4016.0,0.3488]
[1758989197652,1.23644775,4016.1,4016.0,0.6828]
[1758989197952,1.23644775,4016.1,4016.0,0.5469]
[1758989199455,1.23644775,4016.1,4016.0,0.6828]
[1758989199650,0.92764775,4016.1,4016.0,0.899]
[1758989201760,0.7438,4016.1,4016.0,0.899]
[1758989205568,1.19173,4016.1,4016.0,0.899]
[1758989208871,1.19173,4016.1,4016.0,1.34694]
[1758989209279,0.435,4016.1,4016.0,1.34694]
[1758989209775,0.88293,4016.1,4016.0,1.34694]
[1758989211780,0.88596518,4016.2,4016.1,0.7631]
[1758989211971,1.19476518,4016.2,4016.1,0.7631]
[1758989213776,1.19476518,4016.2,4016.1,1.21103]
[1758989215869,1.19476518,4016.2,4016.1,0.5469]
[1758989216880,1.19476518,4016.2,4016.1,0.334]
[1758989218979,0.98607,4015.8,4015.7,0.5434]
[1758989219173,1.19107,4015.8,4015.7,0.3218]
[1758989220684,1.19107,4015.8,4015.7,0.76978]
[1758989220980,1.19107,4015.8,4015.7,0.99138]
[1758989221181,1.19107,4015.8,4015.7,0.5434]
[1758989221678,1.1911,4015.5,4015.4,3.4294]
[1758989222275,1.1911,4015.5,4015.4,3.7512]
[1758989223474,1.1911,4015.5,4015.3,0.44802]
[1758989223475,0.205,4014.6,4014.5,0.3517]
[1758989223678,0.7431,4014.6,4014.5,0.2216]
[1758989224171,0.7431,4014.6,4014.5,0.5434]
[1758989224374,0.7431,4014.6,4014.5,0.7517]
[1758989224375,1.24093226,4014.6,4014.5,0.7517]
[1758989224575,0.321,4014.5,4014.4,3.2078]
[1758989224780,1.24094223,4014.5,4014.4,3.9595]
[1758989226579,0.49784223,4014.5,4014.4,3.9595]
[1758989226778,0.44799,4015.6,4014.9,0.44807]
[1758989227082,3.4128,4015.1,4015.0,0.8764]
[1758989227275,3.91006324,4015.1,4015.0,0.8764]
[1758989228480,4.12716324,4015.1,4015.0,0.8764]
[1758989228785,4.44257081,4015.1,4015.0,0.8764]
[1758989229285,4.89062081,4015.1,4014.7,0.44808]
[1758989229581,0.7602,4014.8,4014.7,0.2211]
[1758989229776,1.25717081,4014.8,4014.7,0.2211]
[1758989229976,1.25717081,4014.8,4014.7,0.556]
[1758989230778,1.25717081,4014.8,4014.7,0.766]
[1758989231084,0.94147081,4014.8,4014.7,0.766]
[1758989232281,0.49697081,4014.8,4014.7,0.766]
[1758989232678,3.2078,4015.1,4015.0,1.01045]
[1758989232986,3.70580929,4015.1,4015.0,1.34535]
[1758989233788,0.74900929,4015.1,4015.0,1.34535]
[1758989234087,0.251,4015.1,4015.0,1.34535]
[1758989234884,0.4734,4015.1,4015.0,1.34535]
[1758989236685,1.0112,4015.1,4015.0,1.34535]
[1758989236986,1.509127,4015.1,4015.0,1.34535]
[1758989237186,1.509127,4015.1,4015.0,1.21405]
[1758989237784,1.509127,4015.1,4015.0,1.34535]
[1758989238690,1.258127,4015.1,4015.0,1.34535]
[1758989243099,0.942427,4015.1,4015.0,1.34535]
[1758989246197,1.257927,4015.1,4015.0,1.00405]
[1758989247104,1.257927,4015.1,4015.0,1.12705]
[1758989247305,1.257927,4015.1,4015.0,1.34175]
[1758989247996,0.942427,4015.1,4015.0,1.34175]
[1758989248200,1.193427,4015.1,4015.0,1.34175]
[1758989248604,0.497927,4015.1,4015.0,1.34175]
[1758989250909,0.723027,4015.1,4015.0,1.34175]
[1758989258114,1.26659172,4015.1,4015.0,0.8937]
[1758989258317,1.71463172,4015.1,4015.0,0.556]
[1758989259014,1.71463172,4015.1,4015.0,1.00405]
[1758989259817,1.71463172,4015.1,4015.0,0.556]
[1758989261420,1.96563172,4015.1,4015.0,0.556]
[1758989264223,0.7668,4014.8,4014.7,0.3281]
[1758989264426,3.30804049,4014.8,4014.7,0.3281]
[1758989265220,3.75612049,4014.8,4014.7,0.3281]
[1758989265421,1.21489,4014.7,4014.6,3.5359]
[1758989265617,1.71468172,4014.7,4014.6,3.7462]
[1758989265825,1.71468172,4014.7,4014.6,4.1943]
[1758989266427,1.71468172,4014.7,4014.6,3.7462]
[1758989268227,1.21489,4014.7,4014.6,3.7462]
[1758989268428,1.71479459,4014.7,4014.6,3.7462]
[1758989273935,1.71479459,4014.7,4014.6,3.9609]
[1758989274929,1.71479459,4014.7,4014.6,4.409]
[1758989275135,0.95120459,4014.7,4014.6,4.409]
[1758989275436,0.72500459,4014.7,4014.6,4.409]
[1758989276033,1.17309459,4014.7,4014.6,4.409]
[1758989278038,1.17309459,4014.7,4014.6,3.9609]
[1758989279238,0.94799459,4014.7,4014.6,4.409]
[1758989279434,0.49990459,4014.7,4014.6,4.409]
[1758989280241,0.70680459,4014.7,4014.6,3.9609]
[1758989280437,0.70680459,4014.7,4014.6,4.409]
[1758989280740,0.49990459,4014.7,4014.6,4.409]
[1758989281540,0.49990459,4014.7,4014.6,4.66]
[1758989282541,0.37436892,4014.7,4014.6,11.45044877]
[1758989282733,0.251,4015.4,4015.3,0.2139]
[1758989282940,0.251,4015.4,4015.3,0.7482]
[1758989283128,0.251,4015.4,4015.3,1.19622]
[1758989283334,3.6558,4015.5,4015.3,1.19622]
[1758989283335,3.2078,4016.0,4015.9,0.4342]
[1758989283536,0.25404518,4016.2,4016.1,0.7482]
[1758989286646,0.00304518,4016.2,4016.1,0.7482]
[1758989286944,0.20994518,4016.2,4016.1,0.7482]
[1758989287149,0.75574518,4016.2,4016.1,0.5343]
[1758989289441,0.7325,4016.0,4015.9,0.3322]
[1758989289642,0.9835,4016.0,4015.9,0.3322]
[1758989290144,0.9835,4016.0,4015.9,0.5384]
[1758989293646,12.8313,4016.0,4015.9,0.5384]
[1758989294145,12.8313,4016.0,4015.9,0.3322]
[1758989294547,13.32873684,4016.0,4015.9,0.3322]
[1758989295848,13.77667684,4016.0,4015.9,0.3322]
[1758989296551,15.21333657,4016.0,4015.9,0.3322]
[1758989303557,0.44799,4015.6,4015.5,0.1285]
[1758989303752,0.44799,4015.6,4015.2,3.2078]
[1758989303753,0.86802,4015.4,4015.3,0.4205]
[1758989304053,3.37421657,4015.4,4015.3,0.4205]
[1758989304253,3.37421657,4015.4,4015.3,0.76]
[1758989305757,3.37421657,4015.4,4015.3,1.20802]
[1758989305953,3.05311657,4015.4,4015.3,1.20802]
[1758989306755,1.93409657,4015.4,4015.3,1.20802]
[1758989306958,2.18509657,4015.4,4015.3,1.20802]
[1758989308269,2.63310657,4015.4,4015.3,1.20802]
[1758989308670,2.63310657,4015.4,4015.3,0.76]
[1758989308872,2.84740657,4015.4,4015.3,0.76]
[1758989309367,3.37420657,4015.4,4015.3,0.76]
[1758989311466,2.63310657,4015.4,4015.3,1.20802]
[1758989311772,2.84740657,4015.4,4015.3,1.20802]
[1758989312371,2.39939657,4015.4,4015.3,1.20802]
[1758989312574,2.84740657,4015.4,4015.3,1.20802]
[1758989313272,2.39939657,4015.4,4015.3,1.20802]
[1758989313466,0.96273684,4015.4,4015.3,1.20802]
[1758989313671,0.74976259,4015.4,4015.3,1.20802]
[1758989314771,1.19777259,4015.4,4015.3,1.20802]
[1758989314973,0.74976259,4015.4,4015.3,1.20802]
[1758989316874,0.49876259,4015.4,4015.3,1.20802]
[1758989317079,0.49876259,4015.4,4015.3,2.64467973]
[1758989321477,0.47560023,4015.4,4015.3,2.64467973]
[1758989321681,0.47560023,4015.4,4015.3,2.89567973]
[1758989322386,0.671,4016.1,4016.0,1.33594]
[1758989322788,0.9921,4016.1,4016.0,1.33594]
[1758989324187,1.44003,4016.1,4016.0,1.33594]
[1758989324388,0.9921,4016.1,4016.0,1.33594]
[1758989324699,1.44003,4016.1,4016.0,0.5544]
[1758989324987,0.9921,4016.1,4016.0,0.44794]
[1758989325194,0.9921,4016.1,4016.0,0.78744]
[1758989325488,0.9921,4016.1,4016.0,1.00234]
[1758989326688,0.7411,4016.1,4016.0,1.00234]
[1758989326986,0.9921,4016.1,4016.0,1.00234]
[1758989328089,1.44003,4016.1,4016.0,1.00234]
[1758989328292,1.44003,4016.1,4016.0,1.20794]
[1758989328490,0.9921,4016.1,4016.0,1.33594]
[1758989329190,0.671,4016.1,4016.0,1.33594]
[1758989329789,0.42,4016.1,4016.0,1.33594]
[1758989329992,0.4653,4016.1,4016.0,1.33594]
[1758989330182,0.00304518,4016.2,4016.1,0.86843]
[1758989330488,0.25404518,4016.2,4016.1,1.20793]
[1758989333582,0.75302311,4016.2,4016.1,1.20793]
[1758989335192,0.96732311,4016.2,4016.1,1.20793]
[1758989335580,0.71632311,4016.2,4016.1,1.20793]
[1758989337691,0.50202311,4016.2,4016.1,1.20793]
[1758989346496,0.50202311,4016.2,4016.1,6.20793]
[1758989346693,0.00304518,4016.2,4016.1,6.20793]
[1758989350602,0.2052,4017.3,4017.2,1.17261]
[1758989350795,0.49840581,4017.3,4017.2,1.17261]
[1758989351100,0.49840581,4017.3,4017.2,2.86026973]
[1758989351594,3.2078,4017.6,4017.5,0.99498]
[1758989351800,3.7081555,4017.6,4017.5,1.30388]
[1758989351999,3.7081555,4017.6,4017.5,2.74053973]
[1758989353200,3.20997353,4017.6,4017.5,2.74053973]
[1758989354402,0.00217353,4017.6,4017.5,7.74053973]
[1758989356602,0.00217353,4017.6,4017.5,8.0912941]
[1758989358599,0.20737353,4017.6,4017.5,1.30388]
[1758989358802,0.75967353,4017.6,4017.5,1.55488]
[1758989358998,0.75967353,4017.6,4017.5,1.21598]
[1758989360503,0.75967353,4017.6,4017.5,0.5172]
[1758989360711,0.42,4017.4,4017.3,3.5167]
[1758989361007,0.7575,4017.4,4017.3,3.7677]
[1758989362111,0.7575,4017.4,4017.3,3.976]
[1758989362411,0.7575,4017.4,4017.3,3.725]
[1758989362604,0.7575,4017.4,4017.3,3.5167]
[1758989363912,0.7575,4017.4,4017.3,3.725]
[1758989366718,0.7575,4017.4,4017.3,0.3089]
[1758989366908,1.205,4017.3,4017.2,0.00217315]
[1758989367310,1.70192737,4017.3,4017.2,0.00217315]
[1758989367820,1.70192737,4017.3,4017.2,0.31147315]
[1758989367821,1.205,4017.3,4017.2,0.31147315]
[1758989369620,1.205,4017.3,4017.2,0.73077315]
[1758989369924,0.4373,4017.3,4017.2,0.73077315]
[1758989373523,0.8851,4017.3,4017.2,1.17858315]
[1758989374128,1.38275524,4017.3,4017.2,1.17858315]
[1758989374317,1.38275524,4017.3,4017.2,0.73077315]
[1758989374920,0.93495524,4017.3,4017.2,0.73077315]
[1758989375228,16.75006934,4017.3,4017.2,0.00217315]
[1758989375814,0.2143,4016.1,4015.7,3.2078]
[1758989376019,0.2143,4015.8,4015.7,3.2078]
[1758989376317,0.7572,4015.8,4015.7,3.4189]
[1758989376617,1.25520083,4015.8,4015.7,0.3093]
[1758989376820,1.25520083,4015.8,4015.7,0.31144175]
[1758989377323,0.7572,4015.8,4015.7,0.31144175]
[1758989378525,0.7572,4015.8,4015.7,0.52254175]
[1758989379430,2.7956141,4015.8,4015.7,0.00214175]
[1758989379639,13.25293721,4015.8,4015.7,0.00214175]
[1758989382328,0.7572,4014.9,4014.8,0.5204]
[1758989382526,1.0082,4014.9,4014.8,0.3093]
[1758989383333,1.0082,4014.9,4014.8,0.52312057]
[1758989384226,1.0082,4014.9,4014.8,0.73132057]
[1758989385530,3.5277,4015.3,4014.8,0.73132057]
[1758989385829,3.4588,4015.3,4015.2,0.7286]
[1758989386429,3.6731,4015.3,4015.2,0.7286]
[1758989389126,3.8961,4015.3,4015.2,0.7286]
[1758989390034,3.8961,4015.3,4014.9,0.3093]
[1758989390035,6.0034141,4015.3,4014.9,0.3093]
[1758989390423,0.88537,4014.9,4014.8,0.00272057]
[1758989390626,1.45627,4014.9,4014.8,0.00272057]
[1758989394741,1.45627,4014.9,4014.8,0.31502057]
[1758989395032,4.32786,4015.3,4014.8,0.31502057]
[1758989395033,3.2078,4015.3,4015.2,0.7319]
[1758989395236,3.4588,4015.3,4015.2,0.7319]
[1758989396036,0.251,4015.3,4015.2,0.7319]
[1758989396337,3.4222,4015.8,4015.7,0.7319]
[1758989396638,3.8862,4015.8,4015.7,0.7319]
[1758989397038,4.1992,4015.8,4015.7,0.7319]
[1758989398636,0.9914,4015.8,4015.7,0.7319]
[1758989400336,0.7404,4015.6,4015.5,0.3123]
[1758989400534,0.7404,4015.6,4015.3,3.2078]
[1758989400535,0.7404,4015.4,4015.3,3.5201]
[1758989400733,0.9914,4015.4,4015.3,3.5201]
[1758989401129,0.9914,4015.4,4015.3,3.7299]
[1758989403733,0.9914,4015.4,4015.3,3.9397]
[1758989404240,0.96352261,4015.4,4015.3,3.9397]
[1758989404441,0.251,4015.4,4015.3,3.9397]
[1758989405339,0.96411137,4015.4,4015.3,3.9397]
[1758989405536,1.93812137,4015.4,4015.3,3.9397]
[1758989406038,1.93812137,4015.4,4015.3,0.7319]
[1758989407643,0.97407,4014.9,4014.8,3.73262057]
[1758989407940,1.68718137,4014.9,4014.8,3.73262057]